fUSD/lending_fUSD_20250806
["ID","MTS","AMOUNT","RATE_DAILY","PERIOD"]
[377547818,1754439067428,-400.0,0.0003589,14]
[377547819,1754439067439,-400.0,0.0003589,14]
[377547820,1754439067449,-400.0,0.0003589,14]
[377547821,1754439067461,-334.15085504,0.0003589,14]
[377547822,1754439067470,-400.0,0.0003589,14]
[377547823,1754439067479,-400.0,0.0003589,14]
[377547824,1754439067488,-400.0,0.0003589,14]
[377547825,1754439067500,-400.0,0.0003589,14]
[377547826,1754439067518,-300.0,0.0003589,14]
[377547827,1754439067527,-400.0,0.0003589,14]
[377547828,1754439067536,-400.0,0.0003589,14]
[377547829,1754439067546,-400.0,0.0003589,14]
[377547830,1754439067555,-400.0,0.0003589,14]
[377547831,1754439067566,-400.0,0.0003589,14]
[377547832,1754439067576,-483.48,0.0003589,14]
[377547833,1754439067585,-400.0,0.0003589,14]
[377547834,1754439067594,-802.14,0.0003589,14]
[377547835,1754439067605,-400.0,0.0003589,14]
[377547836,1754439067615,-400.0,0.0003589,14]
[377547837,1754439067625,-502.79,0.0003589,14]
[377547838,1754439067635,-400.0,0.0003589,14]
[377547839,1754439067645,-400.0,0.0003589,14]
[377547840,1754439067654,-400.0,0.0003589,5]
[377547841,1754439067665,-1520.6,0.0003589,14]
[377547842,1754439067679,-400.0,0.0003589,14]
[377547843,1754439067696,-400.0,0.0003589,14]
[377547844,1754439067707,-1031.7,0.0003589,14]
[377547845,1754439067716,-238.97405586,0.0003589,14]
[377547846,1754439067726,-400.0,0.0003589,14]
[377547847,1754439067737,-400.0,0.0003589,14]
[377547848,1754439067747,-400.0,0.0003589,14]
[377547849,1754439067756,-1056.67,0.0003589,14]
[377547850,1754439067766,-400.0,0.0003589,14]
[377547851,1754439067777,-400.0,0.0003589,14]
[377547852,1754439067786,-400.0,0.0003589,14]
[377547853,1754439067797,-400.0,0.0003589,14]
[377547854,1754439067807,-400.0,0.0003589,14]
[377547855,1754439067817,-400.0,0.0003589,14]
[377547856,1754439067827,-400.0,0.0003589,14]
[377547857,1754439067836,-400.0,0.0003589,14]
[377547858,1754439067845,-400.0,0.0003589,14]
[377547859,1754439067855,-400.0,0.0003589,14]
[377547860,1754439067866,-400.0,0.0003589,14]
[377547861,1754439067876,-400.0,0.0003589,14]
[377547862,1754439067886,-400.0,0.0003589,2]
[377547863,1754439067895,-400.0,0.0003589,14]
[377547864,1754439067905,-433.33,0.0003589,14]
[377547865,1754439067914,-400.0,0.0003589,14]
[377547866,1754439067924,-1062.27,0.0003589,14]
[377547867,1754439067933,-400.0,0.0003589,14]
[377547868,1754439067943,-400.0,0.0003589,14]
[377547869,1754439067952,-1231.77,0.0003589,14]
[377547870,1754439067961,-400.0,0.0003589,14]
[377547871,1754439067970,-963.96,0.0003589,14]
[377547872,1754439067980,-400.0,0.0003589,14]
[377547873,1754439067989,-400.0,0.0003589,14]
[377547874,1754439067998,-400.0,0.0003589,14]
[377547875,1754439068008,-527.44,0.0003589,14]
[377547876,1754439068018,-560.44,0.0003589,14]
[377547877,1754439068029,-400.0,0.0003589,14]
[377547878,1754439068039,-707.8,0.0003589,14]
[377547879,1754439068049,-400.0,0.0003589,14]
[377547880,1754439068059,-400.0,0.0003589,14]
[377547881,1754439068069,-400.0,0.0003589,14]
[377547882,1754439068079,-400.0,0.0003589,14]
[377547883,1754439068089,-435.88,0.0003589,14]
[377547884,1754439068098,-894.97,0.0003589,14]
[377547885,1754439068108,-692.97,0.0003589,14]
[377547886,1754439068118,-400.0,0.0003589,14]
[377547887,1754439068127,-856.89,0.0003589,14]
[377547888,1754439068138,-686.39,0.0003589,14]
[377547889,1754439068147,-400.0,0.0003589,14]
[377547890,1754439068156,-710.69,0.0003589,14]
[377547891,1754439068166,-400.0,0.0003589,14]
[377547892,1754439068178,-502.33980679,0.0003589,14]
[377547893,1754439068187,-400.0,0.0003589,14]
[377547894,1754439068197,-400.0,0.0003589,14]
[377547895,1754439068212,-568.14,0.0003589,14]
[377547896,1754439068222,-852.03,0.0003589,14]
[377547897,1754439068232,-438.54,0.0003589,14]
[377547898,1754439068243,-400.0,0.0003589,14]
[377547899,1754439068253,-891.03,0.0003589,14]
[377547900,1754439068265,-400.0,0.0003589,14]
[377547901,1754439068276,-400.0,0.0003589,14]
[377547902,1754439068287,-636.87,0.0003589,14]
[377547903,1754439068299,-500.76544318,0.0003589,14]
[377547904,1754439068309,-400.0,0.0003589,14]
[377547905,1754439068320,-400.0,0.0003589,14]
[377547906,1754439068330,-400.0,0.0003589,14]
[377547907,1754439068339,-400.0,0.0003589,14]
[377547908,1754439068349,-400.0,0.0003589,14]
[377547909,1754439068358,-400.0,0.0003589,14]
[377547910,1754439068367,-400.0,0.0003589,14]
[377547911,1754439068377,-659.61,0.0003589,14]
[377547912,1754439068387,-400.0,0.0003589,14]
[377547913,1754439068396,-400.0,0.0003589,14]
[377547914,1754439068405,-335.82,0.0003589,14]
[377547915,1754439068414,-400.0,0.0003589,14]
[377547916,1754439068425,-400.0,0.0003589,14]
[377547917,1754439068434,-400.0,0.0003589,14]
[377547918,1754439068444,-400.0,0.0003589,14]
[377547919,1754439068453,-400.0,0.0003589,14]
[377547920,1754439068462,-400.0,0.0003589,14]
[377547921,1754439068471,-400.0,0.0003589,14]
[377547922,1754439068480,-454.24,0.0003589,14]
[377547923,1754439068489,-400.0,0.0003589,14]
[377547924,1754439068498,-400.0,0.0003589,14]
[377547925,1754439068507,-400.0,0.0003589,14]
[377547926,1754439068516,-942.49,0.0003589,14]
[377547927,1754439068525,-400.0,0.0003589,14]
[377547928,1754439068533,-486.99,0.0003589,14]
[377547929,1754439068542,-400.0,0.0003589,14]
[377547930,1754439068551,-400.0,0.0003589,14]
[377547931,1754439068560,-400.0,0.0003589,14]
[377547932,1754439068569,-400.0,0.0003589,14]
[377547933,1754439068579,-400.0,0.0003589,14]
[377547934,1754439068588,-400.0,0.0003589,14]
[377547935,1754439068597,-400.0,0.0003589,14]
[377547936,1754439068608,-400.0,0.0003589,14]
[377547937,1754439068617,-400.0,0.0003589,14]
[377547938,1754439068627,-1031.82,0.0003589,14]
[377547939,1754439068636,-400.0,0.0003589,14]
[377547940,1754439068645,-400.0,0.0003589,14]
[377547941,1754439068656,-400.0,0.0003589,14]
[377547942,1754439068671,-1190.05,0.0003589,14]
[377547943,1754439068683,-400.0,0.0003589,14]
[377547944,1754439068694,-400.0,0.0003589,14]
[377547945,1754439068703,-400.0,0.0003589,14]
[377547946,1754439068712,-465.17,0.0003589,14]
[377547947,1754439068722,-400.0,0.0003589,14]
[377547948,1754439068731,-400.0,0.0003589,14]
[377547949,1754439068741,-400.0,0.0003589,14]
[377547950,1754439068750,-400.0,0.0003589,14]
[377547951,1754439068759,-400.0,0.0003589,14]
[377547952,1754439068768,-400.0,0.0003589,14]
[377547953,1754439068777,-400.0,0.0003589,14]
[377547954,1754439068787,-453.77,0.0003589,14]
[377547955,1754439068796,-576.89,0.0003589,14]
[377547956,1754439068806,-400.0,0.0003589,14]
[377547957,1754439068815,-400.0,0.0003589,14]
[377547958,1754439068824,-400.0,0.0003589,14]
[377547959,1754439068833,-400.0,0.0003589,14]
[377547960,1754439068842,-400.0,0.0003589,14]
[377547961,1754439068851,-400.0,0.0003589,14]
[377547962,1754439068861,-400.0,0.0003589,14]
[377547963,1754439068871,-400.0,0.0003589,14]
[377547964,1754439068890,-400.38937215,0.0003589,14]
[377547965,1754439068900,-1528.13,0.0003589,14]
[377547966,1754439068909,-864.37,0.0003589,14]
[377547967,1754439068918,-1104.7,0.0003589,14]
[377547968,1754439068929,-400.0,0.0003589,14]
[377547969,1754439068938,-666.25,0.0003589,14]
[377547970,1754439068947,-400.0,0.0003589,14]
[377547971,1754439068957,-720.54,0.0003589,14]
[377547972,1754439068966,-400.0,0.0003589,14]
[377547973,1754439068975,-400.0,0.0003589,14]
[377547974,1754439068984,-248.55837808,0.0003589,14]
[377547975,1754439068993,-400.0,0.0003589,14]
[377547976,1754439069002,-400.0,0.0003589,14]
[377547977,1754439069011,-554.84,0.0003589,14]
[377547978,1754439069020,-546.63,0.0003589,14]
[377547979,1754439069029,-400.0,0.0003589,14]
[377547980,1754439069039,-400.0,0.0003589,14]
[377547981,1754439069048,-1006.06,0.0003589,14]
[377547982,1754439069058,-423.2367267,0.0003589,14]
[377547983,1754439069067,-681.94,0.0003589,14]
[377547984,1754439069076,-400.0,0.0003589,14]
[377547985,1754439069086,-400.0,0.0003589,14]
[377547986,1754439069095,-514.52,0.0003589,14]
[377547987,1754439069105,-1062.95,0.0003589,14]
[377547988,1754439069115,-400.0,0.0003589,14]
[377547989,1754439069125,-400.0,0.0003589,14]
[377547990,1754439069135,-421.83,0.0003589,14]
[377547991,1754439069144,-1085.06,0.0003589,14]
[377547992,1754439069153,-400.0,0.0003589,14]
[377547993,1754439069162,-400.0,0.0003589,14]
[377547994,1754439069173,-400.0,0.0003589,14]
[377547995,1754439069183,-400.0,0.0003589,14]
[377547996,1754439069192,-400.0,0.0003589,14]
[377547997,1754439069203,-324.76219591,0.0003589,14]
[377547998,1754439069217,-1734.14,0.0003589,14]
[377547999,1754439069227,-400.0,0.0003589,14]
[377548000,1754439069237,-400.0,0.0003589,14]
[377548001,1754439069248,-500.0,0.0003589,10]
[377548002,1754439069258,-400.0,0.0003589,14]
[377548003,1754439069268,-400.0,0.0003589,14]
[377548004,1754439069278,-400.0,0.0003589,14]
[377548005,1754439069291,-400.0,0.0003589,14]
[377548006,1754439069301,-400.0,0.0003589,14]
[377548007,1754439069312,-400.0,0.0003589,14]
[377548008,1754439069323,-400.0,0.0003589,14]
[377548009,1754439069334,-400.0,0.0003589,14]
[377548010,1754439069345,-400.0,0.0003589,14]
[377548011,1754439069354,-400.0,0.0003589,14]
[377548012,1754439069364,-400.0,0.0003589,14]
[377548013,1754439069375,-400.0,0.0003589,14]
[377548014,1754439069384,-400.0,0.0003589,14]
[377548015,1754439069396,-460.0,0.0003589,14]
[377548016,1754439069407,-400.0,0.0003589,14]
[377548017,1754439069417,-400.0,0.0003589,14]
[377548018,1754439069427,-400.0,0.0003589,14]
[377548019,1754439069437,-308.71703854,0.0003589,14]
[377548020,1754439069446,-400.0,0.0003589,14]
[377548021,1754439069456,-400.0,0.0003589,14]
[377548022,1754439069466,-400.0,0.0003589,14]
[377548023,1754439069477,-400.0,0.0003589,14]
[377548024,1754439069486,-400.0,0.0003589,14]
[377548025,1754439069498,-400.0,0.0003589,14]
[377548026,1754439069507,-400.0,0.0003589,14]
[377548027,1754439069518,-621.69,0.0003589,14]
[377548028,1754439069529,-400.0,0.0003589,14]
[377548029,1754439069539,-400.0,0.0003589,14]
[377548030,1754439069549,-400.0,0.0003589,14]
[377548031,1754439069559,-400.0,0.0003589,14]
[377548032,1754439069569,-1582.29,0.0003589,14]
[377548033,1754439069579,-400.0,0.0003589,14]
[377548034,1754439069589,-1424.06,0.0003589,14]
[377548035,1754439069599,-400.0,0.0003589,14]
[377548036,1754439069609,-982.43,0.0003589,14]
[377548037,1754439069619,-698.37,0.0003589,14]
[377548038,1754439069629,-400.0,0.0003589,14]
[377548039,1754439069638,-400.0,0.0003589,14]
[377548040,1754439069650,-400.0,0.0003589,14]
[377548041,1754439069659,-400.0,0.0003589,14]
[377548042,1754439069670,-400.0,0.0003589,14]
[377548043,1754439069680,-400.0,0.0003589,14]
[377548044,1754439069689,-503.85,0.0003589,14]
[377548045,1754439069698,-400.0,0.0003589,14]
[377548046,1754439069708,-1080.71,0.0003589,14]
[377548047,1754439069719,-400.0,0.0003589,14]
[377548048,1754439069728,-400.0,0.0003589,14]
[377548049,1754439069738,-400.0,0.0003589,14]
[377548050,1754439069748,-594.52,0.0003589,14]
[377548051,1754439069757,-1252.85,0.0003589,14]
[377548052,1754439069767,-400.0,0.0003589,14]
[377548053,1754439069776,-400.0,0.0003589,14]
[377548054,1754439069785,-523.54,0.0003589,14]
[377548055,1754439069794,-288.69427323,0.0003589,14]
[377548056,1754439069804,-400.0,0.0003589,14]
[377548057,1754439069813,-400.0,0.0003589,14]
[377548058,1754439069823,-400.0,0.0003589,14]
[377548059,1754439069833,-505.03201386,0.0003589,14]
[377548060,1754439069843,-400.0,0.0003589,14]
[377548061,1754439069853,-400.0,0.0003589,14]
[377548062,1754439069863,-400.0,0.0003589,14]
[377548063,1754439069873,-1097.41,0.0003589,14]
[377548064,1754439069883,-613.69,0.0003589,14]
[377548065,1754439069893,-1252.74,0.0003589,14]
[377548066,1754439069903,-400.0,0.0003589,14]
[377548067,1754439069913,-1001.48,0.0003589,14]
[377548068,1754439069923,-1380.6,0.0003589,14]
[377548069,1754439069933,-400.0,0.0003589,14]
[377548070,1754439069943,-400.0,0.0003589,14]
[377548071,1754439069952,-1615.49,0.0003589,14]
[377548072,1754439069961,-400.0,0.0003589,14]
[377548073,1754439069970,-400.0,0.0003589,14]
[377548074,1754439069979,-400.0,0.0003589,14]
[377548075,1754439069988,-595.04,0.0003589,14]
[377548076,1754439069997,-400.0,0.0003589,14]
[377548077,1754439070006,-400.0,0.0003589,14]
[377548078,1754439070015,-1198.99,0.0003589,14]
[377548079,1754439070024,-400.0,0.0003589,14]
[377548080,1754439070034,-400.0,0.0003589,14]
[377548081,1754439070043,-400.0,0.0003589,14]
[377548082,1754439070052,-400.0,0.0003589,14]
[377548083,1754439070061,-400.0,0.0003589,14]
[377548084,1754439070071,-400.0,0.0003589,14]
[377548085,1754439070080,-400.0,0.0003589,14]
[377548086,1754439070090,-529.66,0.0003589,14]
[377548087,1754439070099,-400.0,0.0003589,14]
[377548088,1754439070109,-400.0,0.0003589,14]
[377548089,1754439070118,-425.45,0.0003589,14]
[377548090,1754439070128,-400.0,0.0003589,14]
[377548091,1754439070137,-400.0,0.0003589,14]
[377548092,1754439070147,-582.36,0.0003589,14]
[377548093,1754439070157,-400.0,0.0003589,14]
[377548094,1754439070166,-1015.31,0.0003589,14]
[377548095,1754439070176,-400.0,0.0003589,14]
[377548096,1754439070185,-1009.74,0.0003589,14]
[377548097,1754439070195,-286.33412393,0.0003589,14]
[377548098,1754439070208,-400.0,0.0003589,14]
[377548099,1754439070218,-400.0,0.0003589,14]
[377548100,1754439070227,-400.0,0.0003589,14]
[377548101,1754439070236,-400.0,0.0003589,14]
[377548102,1754439070246,-2090.56,0.0003589,14]
[377548103,1754439070255,-400.0,0.0003589,14]
[377548104,1754439070265,-400.0,0.0003589,14]
[377548105,1754439070275,-400.0,0.0003589,14]
[377548106,1754439070285,-400.0,0.0003589,14]
[377548107,1754439070296,-400.0,0.0003589,14]
[377548108,1754439070306,-1125.52,0.0003589,14]
[377548109,1754439070316,-400.0,0.0003589,14]
[377548110,1754439070325,-400.0,0.0003589,14]
[377548111,1754439070335,-400.0,0.0003589,14]
[377548112,1754439070345,-400.0,0.0003589,14]
[377548113,1754439070355,-918.68,0.0003589,14]
[377548114,1754439070364,-885.94,0.0003589,14]
[377548115,1754439070375,-400.0,0.0003589,14]
[377548116,1754439070385,-400.0,0.0003589,14]
[377548117,1754439070396,-912.52,0.0003589,14]
[377548118,1754439070407,-1000.0,0.0003589,30]
[377548119,1754439070417,-400.0,0.0003589,14]
[377548120,1754439070428,-400.0,0.0003589,14]
[377548121,1754439070437,-917.85,0.0003589,14]
[377548122,1754439070446,-400.0,0.0003589,14]
[377548123,1754439070456,-759.95,0.0003589,14]
[377548124,1754439070465,-1119.44,0.0003589,14]
[377548125,1754439070474,-400.0,0.0003589,14]
[377548126,1754439070484,-400.0,0.0003589,14]
[377548127,1754439070493,-400.0,0.0003589,14]
[377548128,1754439070503,-440.91,0.0003589,14]
[377548129,1754439070512,-523.25806709,0.0003589,14]
[377548130,1754439070522,-400.0,0.0003589,14]
[377548131,1754439070531,-400.0,0.0003589,14]
[377548132,1754439070540,-609.67,0.0003589,14]
[377548133,1754439070550,-400.0,0.0003589,14]
[377548134,1754439070559,-717.21,0.0003589,14]
[377548135,1754439070569,-400.0,0.0003589,2]
[377548136,1754439070579,-402.51,0.0003589,14]
[377548137,1754439070588,-400.0,0.0003589,14]
[377548138,1754439070599,-400.0,0.0003589,14]
[377548139,1754439070609,-400.0,0.0003589,14]
[377548140,1754439070620,-494.60249709,0.0003589,14]
[377548141,1754439070629,-400.0,0.0003589,14]
[377548142,1754439070639,-400.0,0.0003589,14]
[377548143,1754439070650,-1289.39,0.0003589,14]
[377548144,1754439070660,-1210.61,0.0003589,14]
[377548145,1754439070669,-400.0,0.0003589,14]
[377548146,1754439070680,-400.0,0.0003589,14]
[377548147,1754439070690,-1138.54,0.0003589,14]
[377548148,1754439070700,-400.0,0.0003589,14]
[377548149,1754439070710,-630.87,0.0003589,14]
[377548150,1754439070720,-1910.72,0.0003589,14]
[377548151,1754439070729,-400.0,0.0003589,14]
[377548152,1754439070739,-400.0,0.0003589,14]
[377548153,1754439070749,-400.0,0.0003589,14]
[377548154,1754439070759,-647.27,0.0003589,14]
[377548155,1754439070769,-400.0,0.0003589,14]
[377548156,1754439070779,-400.0,0.0003589,14]
[377548157,1754439070788,-400.0,0.0003589,14]
[377548158,1754439070798,-1924.65,0.0003589,14]
[377548159,1754439070808,-845.78,0.0003589,14]
[377548160,1754439070818,-400.0,0.0003589,14]
[377548161,1754439070827,-400.0,0.0003589,14]
[377548162,1754439070838,-1802.15,0.0003589,14]
[377548163,1754439070849,-400.0,0.0003589,14]
[377548164,1754439070859,-400.0,0.0003589,14]
[377548165,1754439070868,-645.03,0.0003589,14]
[377548166,1754439070878,-400.0,0.0003589,14]
[377548167,1754439070887,-400.0,0.0003589,14]
[377548168,1754439070897,-537.18,0.0003589,14]
[377548169,1754439070906,-400.0,0.0003589,14]
[377548170,1754439070917,-400.0,0.0003589,14]
[377548171,1754439070927,-964.74,0.0003589,14]
[377548172,1754439070937,-400.0,0.0003589,14]
[377548173,1754439070947,-1892.42,0.0003589,14]
[377548174,1754439070957,-1214.56,0.0003589,14]
[377548175,1754439070966,-400.0,0.0003589,14]
[377548176,1754439070976,-400.0,0.0003589,14]
[377548177,1754439070986,-400.0,0.0003589,2]
[377548178,1754439070996,-474.4,0.0003589,14]
[377548179,1754439071006,-400.0,0.0003589,14]
[377548180,1754439071016,-400.0,0.0003589,14]
[377548181,1754439071025,-757.18,0.0003589,14]
[377548182,1754439071036,-1756.78,0.0003589,14]
[377548183,1754439071045,-400.0,0.0003589,14]
[377548184,1754439071055,-400.0,0.0003589,14]
[377548185,1754439071065,-966.35,0.0003589,14]
[377548186,1754439071075,-460.66,0.0003589,2]
[377548187,1754439071292,-400.0,0.0003589,14]
[377548188,1754439071301,-400.0,0.0003589,14]
[377548189,1754439071311,-400.0,0.0003589,14]
[377548190,1754439071321,-714.52,0.0003589,14]
[377548191,1754439071330,-400.0,0.0003589,14]
[377548192,1754439071341,-832.96,0.0003589,14]
[377548193,1754439071351,-1187.01,0.0003589,14]
[377548194,1754439071361,-400.0,0.0003589,14]
[377548195,1754439071371,-1193.54,0.0003589,14]
[377548196,1754439071380,-400.0,0.0003589,14]
[377548197,1754439071390,-1451.42,0.0003589,14]
[377548198,1754439071400,-1387.5,0.0003589,14]
[377548199,1754439071410,-400.0,0.0003589,2]
[377548200,1754439071419,-530.26130454,0.0003589,14]
[377548201,1754439071430,-400.0,0.0003589,14]
[377548202,1754439071440,-1166.22,0.0003589,14]
[377548203,1754439071450,-807.15,0.0003589,14]
[377548204,1754439071460,-485.5,0.0003589,14]
[377548205,1754439071470,-544.05,0.0003589,14]
[377548206,1754439071480,-400.0,0.0003589,14]
[377548207,1754439071490,-400.0,0.0003589,14]
[377548208,1754439071499,-400.0,0.0003589,14]
[377548209,1754439071509,-400.0,0.0003589,14]
[377548210,1754439071519,-400.0,0.0003589,14]
[377548211,1754439071528,-1228.41,0.0003589,14]
[377548212,1754439071538,-1275.37,0.0003589,14]
[377548213,1754439071547,-1400.73,0.0003589,14]
[377548214,1754439071557,-400.0,0.0003589,14]
[377548215,1754439071567,-400.0,0.0003589,14]
[377548216,1754439071577,-400.0,0.0003589,14]
[377548217,1754439071587,-400.0,0.0003589,14]
[377548218,1754439071596,-1352.44,0.0003589,14]
[377548219,1754439071607,-400.0,0.0003589,14]
[377548220,1754439071617,-1322.25,0.0003589,14]
[377548221,1754439071627,-400.0,0.0003589,14]
[377548222,1754439071637,-400.0,0.0003589,14]
[377548223,1754439071647,-500.0,0.0003589,14]
[377548224,1754439071657,-400.0,0.0003589,14]
[377548225,1754439071667,-400.0,0.0003589,14]
[377548226,1754439071678,-400.0,0.0003589,14]
[377548227,1754439071688,-717.54,0.0003589,14]
[377548228,1754439071698,-744.6,0.0003589,14]
[377548229,1754439071708,-547.85,0.0003589,14]
[377548230,1754439071718,-400.0,0.0003589,14]
[377548231,1754439071728,-400.0,0.0003589,14]
[377548232,1754439071738,-400.0,0.0003589,14]
[377548233,1754439071749,-647.98,0.0003589,14]
[377548234,1754439071758,-400.0,0.0003589,14]
[377548235,1754439071769,-773.28,0.0003589,14]
[377548236,1754439071779,-400.0,0.0003589,14]
[377548237,1754439071788,-1388.56,0.0003589,14]
[377548238,1754439071800,-461.14,0.0003589,14]
[377548239,1754439071810,-1255.37,0.0003589,14]
[377548240,1754439071820,-967.67,0.0003589,14]
[377548241,1754439071830,-533.93,0.0003589,14]
[377548242,1754439071840,-1389.3,0.0003589,14]
[377548243,1754439071849,-1307.45,0.0003589,14]
[377548244,1754439071859,-1240.15,0.0003589,14]
[377548245,1754439071869,-400.0,0.0003589,14]
[377548246,1754439071878,-400.0,0.0003589,14]
[377548247,1754439071888,-400.0,0.0003589,14]
[377548248,1754439071898,-1825.81,0.0003589,14]
[377548249,1754439071908,-400.0,0.0003589,14]
[377548250,1754439071918,-400.0,0.0003589,14]
[377548251,1754439071928,-400.0,0.0003589,14]
[377548252,1754439071937,-400.0,0.0003589,14]
[377548253,1754439071947,-644.1,0.0003589,14]
[377548254,1754439071957,-792.56,0.0003589,14]
[377548255,1754439071967,-400.0,0.0003589,14]
[377548256,1754439071976,-1140.18,0.0003589,14]
[377548257,1754439071986,-1112.59,0.0003589,14]
[377548258,1754439071996,-1439.59,0.0003589,14]
[377548259,1754439072005,-400.0,0.0003589,14]
[377548260,1754439072015,-654.86,0.0003589,14]
[377548261,1754439072025,-400.0,0.0003589,14]
[377548262,1754439072035,-623.79,0.0003589,14]
[377548263,1754439072044,-700.8,0.0003589,14]
[377548264,1754439072054,-720.45,0.0003589,14]
[377548265,1754439072064,-747.0,0.0003589,14]
[377548266,1754439072074,-400.0,0.0003589,14]
[377548267,1754439072084,-400.0,0.0003589,14]
[377548268,1754439072094,-435.91,0.0003589,14]
[377548269,1754439072103,-400.0,0.0003589,14]
[377548270,1754439072113,-400.0,0.0003589,14]
[377548271,1754439072123,-400.0,0.0003589,14]
[377548272,1754439072133,-868.41,0.0003589,14]
[377548273,1754439072142,-873.0,0.0003589,14]
[377548274,1754439072152,-400.0,0.0003589,14]
[377548275,1754439072162,-400.0,0.0003589,14]
[377548276,1754439072172,-773.49,0.0003589,14]
[377548277,1754439072181,-396.32078449,0.0003589,14]
[377548278,1754439072191,-400.0,0.0003589,14]
[377548279,1754439072201,-1181.8,0.0003589,14]
[377548280,1754439072214,-1031.43,0.0003589,14]
[377548281,1754439072224,-400.0,0.0003589,14]
[377548282,1754439072234,-400.0,0.0003589,14]
[377548283,1754439072244,-400.0,0.0003589,14]
[377548284,1754439072255,-404.24,0.0003589,14]
[377548285,1754439072266,-400.0,0.0003589,14]
[377548286,1754439072275,-537.7,0.0003589,14]
[377548287,1754439072288,-436.29789029,0.0003589,14]
[377548288,1754439072297,-400.0,0.0003589,14]
[377548289,1754439072307,-400.0,0.0003589,14]
[377548290,1754439072317,-893.26,0.0003589,14]
[377548291,1754439072327,-684.65,0.0003589,14]
[377548292,1754439072612,-400.0,0.0003589,14]
[377548293,1754439072622,-400.0,0.0003589,14]
[377548294,1754439072631,-400.0,0.0003589,14]
[377548295,1754439072641,-400.0,0.0003589,14]
[377548296,1754439072650,-541.86,0.0003589,14]
[377548297,1754439072659,-907.28,0.0003589,14]
[377548298,1754439072669,-821.55,0.0003589,14]
[377548299,1754439072680,-515.45,0.0003589,14]
[377548300,1754439072690,-400.0,0.0003589,14]
[377548301,1754439072699,-400.0,0.0003589,14]
[377548302,1754439072709,-643.99,0.0003589,14]
[377548303,1754439072718,-478.7,0.0003589,14]
[377548304,1754439072728,-400.0,0.0003589,14]
[377548305,1754439072739,-400.0,0.0003589,14]
[377548306,1754439072750,-400.0,0.0003589,14]
[377548307,1754439072761,-400.0,0.0003589,14]
[377548308,1754439072770,-459.36,0.0003589,14]
[377548309,1754439072780,-2161.02,0.0003589,14]
[377548310,1754439072789,-1311.92,0.0003589,14]
[377548311,1754439072799,-171.92899294,0.0003589,14]
[377548312,1754439072808,-400.0,0.0003589,14]
[377548313,1754439072818,-830.98,0.0003589,14]
[377548314,1754439072827,-400.0,0.0003589,14]
[377548315,1754439072837,-1055.25,0.0003589,14]
[377548316,1754439072846,-630.58,0.0003589,14]
[377548317,1754439072856,-400.0,0.0003589,14]